[Event "Titled Tuesday Blitz February 21 Early 2023"]
[White "Galchenko, Matvey"]
[Black "Ingebretsen, Jens E"]
[WhiteFideId "24175480"]
[BlackFideId "1522965"]
[WhiteElo "2438"]
[BlackElo "2342"]
[Result "1-0"]
[Round "04"]
[TimeControl "180+2"]
[Date "2023.02.21"]
[WhiteClock "0:00:18"]
[BlackClock "0:00:08"]

1. f4 {[%clk 0:03:00]}  d6 {[%clk 0:02:59]} 2. Nf3 {[%clk 0:02:58]}  Bg4 {[%clk 0:03:00]} 3. e4 {[%clk 0:02:51]}  e5 {[%clk 0:02:59]} 4. fxe5 {[%clk 0:02:50]}  dxe5 {[%clk 0:03:00]} 5. Bc4 {[%clk 0:02:50]}  Bh5 {[%clk 0:02:55]} 6. c3 {[%clk 0:02:41]}  Nf6 {[%clk 0:02:53]} 7. Qb3 {[%clk 0:02:34]}  Nbd7 {[%clk 0:02:38]} 8. Qxb7 {[%clk 0:02:22]}  Rb8 {[%clk 0:02:35]} 9. Qc6 {[%clk 0:02:22]}  Rb6 {[%clk 0:02:30]} 10. Qa4 {[%clk 0:02:22]}  Bxf3 {[%clk 0:02:28]} 11. gxf3 {[%clk 0:02:22]}  Bc5 {[%clk 0:02:28]} 12. b4 {[%clk 0:02:09]}  Be7 {[%clk 0:02:15]} 13. d3 {[%clk 0:02:01]}  O-O {[%clk 0:02:14]} 14. Be3 {[%clk 0:02:01]}  c5 {[%clk 0:02:15]} 15. a3 {[%clk 0:01:59]}  Rb8 {[%clk 0:01:56]} 16. Nd2 {[%clk 0:01:58]}  Nb6 {[%clk 0:01:53]} 17. Qc2 {[%clk 0:01:57]}  Nh5 {[%clk 0:01:47]} 18. bxc5 {[%clk 0:01:45]}  Nd7 {[%clk 0:01:33]} 19. d4 {[%clk 0:01:36]}  Bg5 {[%clk 0:01:18]} 20. Bf2 {[%clk 0:01:02]}  Nf4 {[%clk 0:01:11]} 21. h4 {[%clk 0:01:02]}  Be7 {[%clk 0:01:09]} 22. Kf1 {[%clk 0:00:32]}  Qc7 {[%clk 0:00:53]} 23. Be3 {[%clk 0:00:27]}  Nh5 {[%clk 0:00:51]} 24. Rh3 {[%clk 0:00:19]}  Kh8 {[%clk 0:00:46]} 25. Kf2 {[%clk 0:00:18]}  f5 {[%clk 0:00:40]} 26. exf5 {[%clk 0:00:18]}  Qd8 {[%clk 0:00:39]} 27. Rg1 {[%clk 0:00:16]}  Bxh4+ {[%clk 0:00:36]} 28. Ke2 {[%clk 0:00:17]}  Nf4+ {[%clk 0:00:27]} 29. Bxf4 {[%clk 0:00:17]}  exf4 {[%clk 0:00:27]} 30. Rgh1 {[%clk 0:00:16]}  Qe7+ {[%clk 0:00:27]} 31. Be6 {[%clk 0:00:16]}  g5 {[%clk 0:00:23]} 32. fxg6 {[%clk 0:00:16]}  Qxe6+ {[%clk 0:00:23]} 33. Kd1 {[%clk 0:00:17]}  Bf6 {[%clk 0:00:11]} 34. g7+ {[%clk 0:00:18]}  Kg8 {[%clk 0:00:08]} 35. Qxh7+ {[%clk 0:00:18]}  Kf7 {[%clk 0:00:08]} 36. g8=Q+ {[%clk 0:00:18]}  Ke8 {[%clk 0:00:08]} 37. Qxe6+ {[%clk 0:00:18]} 1-0


[Site "https://www.chess.com"]

[Event "Titled Tuesday Blitz February 21 Early 2023"]
[White "Hristodoulou, Panagiotis"]
[Black "Pichot, Alan"]
[WhiteFideId "4214340"]
[BlackFideId "110973"]
[WhiteElo "2372"]
[BlackElo "2638"]
[Result "0-1"]
[Round "04"]
[TimeControl "180+2"]
[Date "2023.02.21"]
[WhiteClock "0:00:28"]
[BlackClock "0:01:02"]

1. e4 {[%clk 0:02:58]}  g6 {[%clk 0:02:58]} 2. d4 {[%clk 0:02:56]}  Bg7 {[%clk 0:02:58]} 3. Nc3 {[%clk 0:02:57]}  d6 {[%clk 0:02:58]} 4. Be3 {[%clk 0:02:55]}  a6 {[%clk 0:02:58]} 5. Qd2 {[%clk 0:02:55]}  b5 {[%clk 0:02:58]} 6. h4 {[%clk 0:02:55]}  h6 {[%clk 0:02:57]} 7. f4 {[%clk 0:02:54]}  Bb7 {[%clk 0:02:57]} 8. Bd3 {[%clk 0:02:54]}  Nf6 {[%clk 0:02:42]} 9. e5 {[%clk 0:02:49]}  Ng4 {[%clk 0:02:40]} 10. O-O-O {[%clk 0:02:49]}  h5 {[%clk 0:02:34]} 11. Nf3 {[%clk 0:02:47]}  e6 {[%clk 0:02:32]} 12. Ng5 {[%clk 0:02:47]}  Bh6 {[%clk 0:02:25]} 13. exd6 {[%clk 0:02:41]}  cxd6 {[%clk 0:02:22]} 14. d5 {[%clk 0:02:41]}  exd5 {[%clk 0:02:10]} 15. Bd4 {[%clk 0:02:37]}  O-O {[%clk 0:02:10]} 16. Be2 {[%clk 0:02:31]}  Qd7 {[%clk 0:01:50]} 17. Rhf1 {[%clk 0:01:55]}  f6 {[%clk 0:01:50]} 18. Nh3 {[%clk 0:01:49]}  b4 {[%clk 0:01:45]} 19. Nb1 {[%clk 0:01:28]}  Nc6 {[%clk 0:01:45]} 20. Bf3 {[%clk 0:01:27]}  Qf7 {[%clk 0:01:35]} 21. Bc5 {[%clk 0:01:03]}  Nce5 {[%clk 0:01:20]} 22. Bxd6 {[%clk 0:00:57]}  Nc4 {[%clk 0:01:13]} 23. Qxb4 {[%clk 0:00:57]}  a5 {[%clk 0:01:09]} 24. Qc5 {[%clk 0:00:35]}  Rfc8 {[%clk 0:01:09]} 25. Bxd5 {[%clk 0:00:35]}  Bxd5 {[%clk 0:01:03]} 26. Qxd5 {[%clk 0:00:36]}  Qxd5 {[%clk 0:01:03]} 27. Rxd5 {[%clk 0:00:37]}  Nge3 {[%clk 0:01:03]} 28. Rfd1 {[%clk 0:00:29]}  Nxd5 {[%clk 0:01:01]} 29. Rxd5 {[%clk 0:00:28]}  Rd8 {[%clk 0:01:02]} 0-1


[Site "https://www.chess.com"]

[Event "Titled Tuesday Blitz February 21 Early 2023"]
[White "Urazayev, Arystanbek"]
[Black "Urbina Perez, Juan Antonio"]
[WhiteFideId "13709810"]
[BlackFideId "2217368"]
[WhiteElo "2460"]
[BlackElo "2266"]
[Result "1-0"]
[Round "04"]
[TimeControl "180+2"]
[Date "2023.02.21"]
[WhiteClock "0:00:43"]
[BlackClock "0:01:09"]

1. d4 {[%clk 0:03:00]}  d5 {[%clk 0:02:57]} 2. c4 {[%clk 0:03:01]}  e6 {[%clk 0:02:56]} 3. Nf3 {[%clk 0:03:01]}  Nf6 {[%clk 0:02:57]} 4. Nc3 {[%clk 0:03:02]}  Nbd7 {[%clk 0:02:56]} 5. cxd5 {[%clk 0:02:59]}  exd5 {[%clk 0:02:55]} 6. Bg5 {[%clk 0:02:59]}  Bb4 {[%clk 0:02:55]} 7. Qc2 {[%clk 0:02:56]}  c5 {[%clk 0:02:56]} 8. e3 {[%clk 0:02:53]}  O-O {[%clk 0:02:55]} 9. Be2 {[%clk 0:02:50]}  Qa5 {[%clk 0:02:55]} 10. O-O {[%clk 0:02:35]}  Bxc3 {[%clk 0:02:53]} 11. bxc3 {[%clk 0:02:35]}  c4 {[%clk 0:02:52]} 12. Nd2 {[%clk 0:02:32]}  Re8 {[%clk 0:02:49]} 13. Bf3 {[%clk 0:02:22]}  Ne4 {[%clk 0:02:48]} 14. Bxe4 {[%clk 0:02:16]}  dxe4 {[%clk 0:02:49]} 15. Bf4 {[%clk 0:02:13]}  Qd5 {[%clk 0:02:44]} 16. a4 {[%clk 0:02:13]}  b6 {[%clk 0:02:34]} 17. Rfb1 {[%clk 0:02:13]}  Ba6 {[%clk 0:02:33]} 18. Rb4 {[%clk 0:02:11]}  Rac8 {[%clk 0:02:33]} 19. h3 {[%clk 0:02:09]}  h6 {[%clk 0:02:32]} 20. a5 {[%clk 0:01:52]}  b5 {[%clk 0:02:32]} 21. Rab1 {[%clk 0:01:52]}  Nf8 {[%clk 0:02:27]} 22. Bg3 {[%clk 0:01:51]}  Ne6 {[%clk 0:02:24]} 23. Qxe4 {[%clk 0:01:30]}  Nc7 {[%clk 0:02:04]} 24. Qg4 {[%clk 0:01:13]}  f5 {[%clk 0:01:59]} 25. Qe2 {[%clk 0:00:59]}  Qc6 {[%clk 0:01:56]} 26. Bxc7 {[%clk 0:00:58]}  Rxc7 {[%clk 0:01:55]} 27. Qf3 {[%clk 0:00:56]}  Qg6 {[%clk 0:01:49]} 28. Rxb5 {[%clk 0:00:54]}  Bxb5 {[%clk 0:01:48]} 29. Rxb5 {[%clk 0:00:55]}  Rf8 {[%clk 0:01:41]} 30. Qd5+ {[%clk 0:00:52]}  Kh8 {[%clk 0:01:38]} 31. Nxc4 {[%clk 0:00:47]}  Rfc8 {[%clk 0:01:25]} 32. Ne5 {[%clk 0:00:47]}  Qh5 {[%clk 0:01:14]} 33. c4 {[%clk 0:00:47]}  Qd1+ {[%clk 0:01:14]} 34. Kh2 {[%clk 0:00:47]}  Qf1 {[%clk 0:01:13]} 35. Qf3 {[%clk 0:00:44]}  Rf8 {[%clk 0:01:09]} 36. Ng6+ {[%clk 0:00:43]} 1-0


[Site "https://www.chess.com"]

[Event "Titled Tuesday Blitz February 21 Early 2023"]
[White "Ozen, Bahadir"]
[Black "Ilkhomi, Jaloliddin"]
[WhiteFideId "6337058"]
[BlackFideId "14700948"]
[WhiteElo "2369"]
[BlackElo "1997"]
[Result "0-1"]
[Round "04"]
[TimeControl "180+2"]
[Date "2023.02.21"]
[WhiteClock "0:00:55"]
[BlackClock "0:00:13"]

1. Nf3 {[%clk 0:03:00]}  Nf6 {[%clk 0:02:59]} 2. e3 {[%clk 0:03:00]}  d5 {[%clk 0:02:59]} 3. c4 {[%clk 0:03:00]}  c6 {[%clk 0:02:59]} 4. Nc3 {[%clk 0:03:00]}  Bf5 {[%clk 0:02:59]} 5. cxd5 {[%clk 0:03:00]}  cxd5 {[%clk 0:02:59]} 6. Qb3 {[%clk 0:03:00]}  Bc8 {[%clk 0:02:55]} 7. Bb5+ {[%clk 0:02:43]}  Nc6 {[%clk 0:02:50]} 8. Ne5 {[%clk 0:02:40]}  Bd7 {[%clk 0:02:45]} 9. Nxd7 {[%clk 0:02:27]}  Qxd7 {[%clk 0:02:45]} 10. d4 {[%clk 0:02:28]}  e6 {[%clk 0:02:44]} 11. Bd2 {[%clk 0:02:28]}  Bd6 {[%clk 0:02:45]} 12. Rc1 {[%clk 0:02:27]}  O-O {[%clk 0:02:45]} 13. O-O {[%clk 0:02:27]}  Rfc8 {[%clk 0:02:45]} 14. Na4 {[%clk 0:02:05]}  Qe7 {[%clk 0:02:30]} 15. Bxc6 {[%clk 0:01:53]}  bxc6 {[%clk 0:01:49]} 16. f3 {[%clk 0:01:47]}  e5 {[%clk 0:01:42]} 17. Qc2 {[%clk 0:01:20]}  Qc7 {[%clk 0:01:19]} 18. h3 {[%clk 0:01:18]}  exd4 {[%clk 0:01:17]} 19. exd4 {[%clk 0:01:18]}  Nh5 {[%clk 0:01:12]} 20. Be1 {[%clk 0:01:13]}  Re8 {[%clk 0:01:07]} 21. Qf5 {[%clk 0:01:04]}  g6 {[%clk 0:00:49]} 22. Qg4 {[%clk 0:01:04]}  f5 {[%clk 0:00:40]} 23. Qh4 {[%clk 0:01:04]}  Bh2+ {[%clk 0:00:25]} 24. Kh1 {[%clk 0:01:04]}  Bg3 {[%clk 0:00:20]} 25. Qg5 {[%clk 0:01:04]}  Bf4 {[%clk 0:00:17]} 26. Qh4 {[%clk 0:01:04]}  Bxc1 {[%clk 0:00:17]} 27. g4 {[%clk 0:01:01]}  Ng7 {[%clk 0:00:17]} 28. Nc3 {[%clk 0:01:01]}  Bf4 {[%clk 0:00:16]} 29. Rg1 {[%clk 0:01:00]}  Qe7 {[%clk 0:00:12]} 30. Qf2 {[%clk 0:00:55]}  Qe3 {[%clk 0:00:12]} 31. gxf5 {[%clk 0:00:54]}  Qxf2 {[%clk 0:00:12]} 32. Bxf2 {[%clk 0:00:55]}  Nxf5 {[%clk 0:00:13]} 0-1


[Site "https://www.chess.com"]

[Event "Titled Tuesday Blitz February 21 Early 2023"]
[White "Pakleza, Zbigniew"]
[Black "Padmini, Rout"]
[WhiteFideId "1119290"]
[BlackFideId "5029295"]
[WhiteElo "2494"]
[BlackElo "2375"]
[Result "0-1"]
[Round "04"]
[TimeControl "180+2"]
[Date "2023.02.21"]
[WhiteClock "0:00:26"]
[BlackClock "0:00:14"]

1. d4 {[%clk 0:03:00]}  Nf6 {[%clk 0:02:58]} 2. Nf3 {[%clk 0:03:01]}  e6 {[%clk 0:02:58]} 3. Bf4 {[%clk 0:03:01]}  d5 {[%clk 0:02:57]} 4. e3 {[%clk 0:03:01]}  Bd6 {[%clk 0:02:55]} 5. Bg3 {[%clk 0:03:01]}  O-O {[%clk 0:02:55]} 6. Nbd2 {[%clk 0:03:01]}  c5 {[%clk 0:02:55]} 7. c3 {[%clk 0:03:02]}  Qc7 {[%clk 0:02:54]} 8. Be2 {[%clk 0:03:00]}  Nbd7 {[%clk 0:02:53]} 9. c4 {[%clk 0:02:59]}  cxd4 {[%clk 0:02:40]} 10. Nxd4 {[%clk 0:02:59]}  a6 {[%clk 0:02:21]} 11. Rc1 {[%clk 0:02:57]}  Qb6 {[%clk 0:02:09]} 12. Bxd6 {[%clk 0:02:54]}  Qxd6 {[%clk 0:02:10]} 13. O-O {[%clk 0:02:47]}  e5 {[%clk 0:02:06]} 14. Nf5 {[%clk 0:02:30]}  Qe6 {[%clk 0:02:05]} 15. Ng3 {[%clk 0:02:29]}  b5 {[%clk 0:01:37]} 16. cxd5 {[%clk 0:02:01]}  Nxd5 {[%clk 0:01:37]} 17. Bg4 {[%clk 0:01:58]}  Qb6 {[%clk 0:01:34]} 18. Nf3 {[%clk 0:01:20]}  N7f6 {[%clk 0:01:03]} 19. Bxc8 {[%clk 0:01:16]}  Raxc8 {[%clk 0:01:01]} 20. Nxe5 {[%clk 0:01:12]}  Nxe3 {[%clk 0:00:44]} 21. Qb3 {[%clk 0:00:42]}  Ned5 {[%clk 0:00:18]} 22. Rcd1 {[%clk 0:00:29]}  Qe6 {[%clk 0:00:17]} 23. Rfe1 {[%clk 0:00:28]}  Rfe8 {[%clk 0:00:17]} 24. h3 {[%clk 0:00:26]}  Nf4 {[%clk 0:00:15]} 25. Qf3 {[%clk 0:00:26]}  Ng6 {[%clk 0:00:14]} 0-1


[Site "https://www.chess.com"]

[Event "Titled Tuesday Blitz February 21 Early 2023"]
[White "Ahmadzada, Ahmad"]
[Black "Shapiro, Viktor"]
[WhiteFideId "13413007"]
[BlackFideId "4175700"]
[WhiteElo "2488"]
[BlackElo "2192"]
[Result "1-0"]
[Round "04"]
[TimeControl "180+2"]
[Date "2023.02.21"]
[WhiteClock "0:00:45"]
[BlackClock "0:01:11"]

1. Nf3 {[%clk 0:03:00]}  Nf6 {[%clk 0:02:48]} 2. g3 {[%clk 0:03:00]}  c5 {[%clk 0:02:48]} 3. Bg2 {[%clk 0:03:00]}  Nc6 {[%clk 0:02:48]} 4. O-O {[%clk 0:03:01]}  g6 {[%clk 0:02:48]} 5. b3 {[%clk 0:02:56]}  Bg7 {[%clk 0:02:48]} 6. Bb2 {[%clk 0:02:56]}  O-O {[%clk 0:02:49]} 7. c4 {[%clk 0:02:55]}  d6 {[%clk 0:02:49]} 8. d4 {[%clk 0:02:55]}  cxd4 {[%clk 0:02:49]} 9. Nxd4 {[%clk 0:02:56]}  Bd7 {[%clk 0:02:50]} 10. Nc3 {[%clk 0:02:55]}  a6 {[%clk 0:02:50]} 11. Nxc6 {[%clk 0:02:48]}  Bxc6 {[%clk 0:02:50]} 12. Bxc6 {[%clk 0:02:48]}  bxc6 {[%clk 0:02:49]} 13. e4 {[%clk 0:02:48]}  Nd7 {[%clk 0:02:48]} 14. Qe2 {[%clk 0:02:45]}  Nc5 {[%clk 0:02:39]} 15. Rad1 {[%clk 0:02:45]}  Qb6 {[%clk 0:02:39]} 16. Qc2 {[%clk 0:02:14]}  a5 {[%clk 0:02:36]} 17. Ba3 {[%clk 0:02:09]}  Rfd8 {[%clk 0:02:19]} 18. Bxc5 {[%clk 0:02:06]}  dxc5 {[%clk 0:02:06]} 19. Na4 {[%clk 0:02:06]}  Qa7 {[%clk 0:02:06]} 20. f4 {[%clk 0:02:06]}  Bd4+ {[%clk 0:02:06]} 21. Kg2 {[%clk 0:02:06]}  e5 {[%clk 0:01:55]} 22. f5 {[%clk 0:02:05]}  Qe7 {[%clk 0:01:54]} 23. Rd3 {[%clk 0:02:00]}  Ra7 {[%clk 0:01:51]} 24. Qe2 {[%clk 0:01:53]}  Qg5 {[%clk 0:01:50]} 25. h4 {[%clk 0:01:50]}  Qe7 {[%clk 0:01:49]} 26. f6 {[%clk 0:01:43]}  Qf8 {[%clk 0:01:45]} 27. g4 {[%clk 0:01:44]}  Rad7 {[%clk 0:01:40]} 28. g5 {[%clk 0:01:39]}  h5 {[%clk 0:01:38]} 29. Rfd1 {[%clk 0:01:32]}  Qd6 {[%clk 0:01:36]} 30. Qf3 {[%clk 0:01:30]}  Qe6 {[%clk 0:01:36]} 31. Qg3 {[%clk 0:01:17]}  Rd6 {[%clk 0:01:27]} 32. Kf1 {[%clk 0:01:01]}  Kf8 {[%clk 0:01:25]} 33. Ke2 {[%clk 0:00:54]}  Ke8 {[%clk 0:01:21]} 34. Qf3 {[%clk 0:00:52]}  Kd7 {[%clk 0:01:18]} 35. Rxd4 {[%clk 0:00:51]}  cxd4 {[%clk 0:01:12]} 36. Nc5+ {[%clk 0:00:51]}  Kc7 {[%clk 0:01:13]} 37. Nxe6+ {[%clk 0:00:51]}  Rxe6 {[%clk 0:01:13]} 38. c5 {[%clk 0:00:51]}  Rb8 {[%clk 0:01:13]} 39. Qd3 {[%clk 0:00:49]}  Rb5 {[%clk 0:01:12]} 40. Qc4 {[%clk 0:00:47]}  Kb7 {[%clk 0:01:11]} 41. Qxe6 {[%clk 0:00:45]} 1-0


[Site "https://www.chess.com"]

[Event "Titled Tuesday Blitz February 21 Early 2023"]
[White "Fernandez Guillen, Ernesto J."]
[Black "Baghdasaryan, Vahe"]
[WhiteFideId "3512428"]
[BlackFideId "13303139"]
[WhiteElo "2477"]
[BlackElo "2257"]
[Result "1-0"]
[Round "04"]
[TimeControl "180+2"]
[Date "2023.02.21"]
[WhiteClock "0:00:19"]
[BlackClock "0:00:08"]

1. e4 {[%clk 0:03:00]}  c5 {[%clk 0:02:59]} 2. Nf3 {[%clk 0:03:00]}  e6 {[%clk 0:02:59]} 3. d4 {[%clk 0:03:00]}  cxd4 {[%clk 0:02:59]} 4. Nxd4 {[%clk 0:03:01]}  Nf6 {[%clk 0:02:59]} 5. Nc3 {[%clk 0:03:00]}  Nc6 {[%clk 0:02:59]} 6. Nxc6 {[%clk 0:03:00]}  bxc6 {[%clk 0:02:58]} 7. Bd3 {[%clk 0:03:01]}  d5 {[%clk 0:02:50]} 8. O-O {[%clk 0:02:56]}  Bd6 {[%clk 0:02:43]} 9. Qe2 {[%clk 0:02:26]}  Qc7 {[%clk 0:02:40]} 10. f4 {[%clk 0:02:25]}  Bc5+ {[%clk 0:02:39]} 11. Kh1 {[%clk 0:02:25]}  h5 {[%clk 0:02:37]} 12. e5 {[%clk 0:02:19]}  Ng4 {[%clk 0:02:37]} 13. Na4 {[%clk 0:02:19]}  Bb6 {[%clk 0:02:27]} 14. Nxb6 {[%clk 0:02:15]}  Qxb6 {[%clk 0:02:28]} 15. h3 {[%clk 0:02:14]}  a5 {[%clk 0:02:24]} 16. a4 {[%clk 0:02:13]}  Ba6 {[%clk 0:02:23]} 17. Bxa6 {[%clk 0:02:12]}  Rxa6 {[%clk 0:02:24]} 18. b3 {[%clk 0:02:12]}  Ra7 {[%clk 0:02:20]} 19. Ba3 {[%clk 0:02:10]}  Nh6 {[%clk 0:02:16]} 20. Qxh5 {[%clk 0:02:03]}  c5 {[%clk 0:01:52]} 21. f5 {[%clk 0:01:57]}  exf5 {[%clk 0:01:45]} 22. e6 {[%clk 0:01:57]}  O-O {[%clk 0:01:45]} 23. exf7+ {[%clk 0:01:55]}  Raxf7 {[%clk 0:01:44]} 24. Rae1 {[%clk 0:01:55]}  f4 {[%clk 0:01:43]} 25. Qxd5 {[%clk 0:01:48]}  Rd8 {[%clk 0:01:28]} 26. Qc4 {[%clk 0:01:39]}  Rd4 {[%clk 0:00:42]} 27. Qxc5 {[%clk 0:00:46]}  Qd8 {[%clk 0:00:41]} 28. Qb5 {[%clk 0:00:38]}  Qh4 {[%clk 0:00:29]} 29. Re8+ {[%clk 0:00:29]}  Kh7 {[%clk 0:00:28]} 30. Bb2 {[%clk 0:00:22]}  Nf5 {[%clk 0:00:09]} 31. Bxd4 {[%clk 0:00:21]}  Ng3+ {[%clk 0:00:09]} 32. Kg1 {[%clk 0:00:22]}  Nxf1 {[%clk 0:00:08]} 33. Qd3+ {[%clk 0:00:19]} 1-0


[Site "https://www.chess.com"]

[Event "Titled Tuesday Blitz February 21 Early 2023"]
[White "Alinasab, Mobina"]
[Black "Liyanage, Ranindu Dilshan"]
[WhiteFideId "12528897"]
[BlackFideId "9915834"]
[WhiteElo "2347"]
[BlackElo "2342"]
[Result "1-0"]
[Round "04"]
[TimeControl "180+2"]
[Date "2023.02.21"]
[WhiteClock "0:00:05"]
[BlackClock "0:00:21"]

1. Nf3 {[%clk 0:03:00]}  d5 {[%clk 0:02:59]} 2. g3 {[%clk 0:03:01]}  g6 {[%clk 0:03:00]} 3. d4 {[%clk 0:03:01]}  Bg7 {[%clk 0:03:00]} 4. Bg2 {[%clk 0:03:01]}  Nf6 {[%clk 0:03:00]} 5. O-O {[%clk 0:03:02]}  O-O {[%clk 0:03:01]} 6. b3 {[%clk 0:03:03]}  c5 {[%clk 0:03:00]} 7. Bb2 {[%clk 0:02:59]}  cxd4 {[%clk 0:03:00]} 8. Nxd4 {[%clk 0:02:58]}  Re8 {[%clk 0:02:55]} 9. c4 {[%clk 0:02:56]}  e5 {[%clk 0:02:42]} 10. Nf3 {[%clk 0:02:56]}  d4 {[%clk 0:02:41]} 11. e3 {[%clk 0:02:51]}  Bg4 {[%clk 0:02:34]} 12. h3 {[%clk 0:02:29]}  Bxf3 {[%clk 0:02:29]} 13. Bxf3 {[%clk 0:02:30]}  e4 {[%clk 0:02:29]} 14. Bg2 {[%clk 0:02:30]}  d3 {[%clk 0:02:28]} 15. Nd2 {[%clk 0:02:27]}  Nc6 {[%clk 0:02:27]} 16. Rc1 {[%clk 0:02:22]}  b6 {[%clk 0:02:05]} 17. Bxf6 {[%clk 0:02:20]}  Bxf6 {[%clk 0:02:00]} 18. Nxe4 {[%clk 0:02:00]}  Bg7 {[%clk 0:01:55]} 19. Nc3 {[%clk 0:01:59]}  Rc8 {[%clk 0:01:44]} 20. Bxc6 {[%clk 0:01:57]}  Rxc6 {[%clk 0:01:43]} 21. Nd5 {[%clk 0:01:57]}  Qd7 {[%clk 0:01:43]} 22. Kg2 {[%clk 0:01:42]}  Qf5 {[%clk 0:01:43]} 23. Qd2 {[%clk 0:01:37]}  Bh6 {[%clk 0:01:34]} 24. Rcd1 {[%clk 0:01:29]}  Qe4+ {[%clk 0:01:33]} 25. Kh2 {[%clk 0:01:26]}  Qf3 {[%clk 0:01:26]} 26. Qxd3 {[%clk 0:01:24]}  Bg7 {[%clk 0:01:26]} 27. Kg1 {[%clk 0:00:51]}  h5 {[%clk 0:01:25]} 28. h4 {[%clk 0:00:49]}  Be5 {[%clk 0:01:23]} 29. e4 {[%clk 0:00:31]}  Qg4 {[%clk 0:01:18]} 30. Kg2 {[%clk 0:00:29]}  Rce6 {[%clk 0:01:11]} 31. Qf3 {[%clk 0:00:25]}  Bb8 {[%clk 0:01:00]} 32. Nf6+ {[%clk 0:00:21]}  Rxf6 {[%clk 0:00:58]} 33. Qxf6 {[%clk 0:00:21]}  Qxe4+ {[%clk 0:00:57]} 34. Qf3 {[%clk 0:00:21]}  Qe6 {[%clk 0:00:53]} 35. Rfe1 {[%clk 0:00:20]}  Qxe1 {[%clk 0:00:52]} 36. Rxe1 {[%clk 0:00:21]}  Rxe1 {[%clk 0:00:53]} 37. Qa8 {[%clk 0:00:20]}  Re8 {[%clk 0:00:53]} 38. b4 {[%clk 0:00:20]}  Kf8 {[%clk 0:00:49]} 39. c5 {[%clk 0:00:20]}  bxc5 {[%clk 0:00:48]} 40. bxc5 {[%clk 0:00:21]}  Bxg3 {[%clk 0:00:49]} 41. Qxa7 {[%clk 0:00:16]}  Be5 {[%clk 0:00:36]} 42. c6 {[%clk 0:00:15]}  Re7 {[%clk 0:00:37]} 43. Qc5 {[%clk 0:00:12]}  Ke8 {[%clk 0:00:36]} 44. a4 {[%clk 0:00:12]}  Bc7 {[%clk 0:00:35]} 45. Qa7 {[%clk 0:00:08]}  Bd8 {[%clk 0:00:31]} 46. Qa8 {[%clk 0:00:08]}  Rc7 {[%clk 0:00:28]} 47. a5 {[%clk 0:00:07]}  Ke7 {[%clk 0:00:28]} 48. a6 {[%clk 0:00:07]}  Ke6 {[%clk 0:00:25]} 49. a7 {[%clk 0:00:07]}  Be7 {[%clk 0:00:22]} 50. Qb7 {[%clk 0:00:05]}  Bd6 {[%clk 0:00:21]} 51. Qxc7 {[%clk 0:00:05]} 1-0


[Site "https://www.chess.com"]